bitfinex-derivatives/quotes_SOLF0:USTF0_20240816
["timestamp","ask_amount","ask_price","bid_price","bid_amount"]
[1723825386198,3.52556109,138.42,138.41,0.04919546]
[1723825389603,5.61189349,138.43,138.41,0.04919546]
[1723825390101,9.19009416,138.43,138.41,0.04919546]
[1723825390703,0.05189349,138.43,138.41,0.04919546]
[1723825390907,3.63623483,138.43,138.41,0.04919546]
[1723825391112,52.13189349,138.43,138.41,0.04919546]
[1723825391632,1.0,138.42,138.41,0.04919546]
[1723825394213,1.0,138.42,138.32,1.3397]
[1723825394507,52.08,138.4,138.32,2.6793]
[1723825394909,52.08,138.38,138.32,2.6793]
[1723825395315,0.04987525,138.36,138.34,0.05157765]
[1723825395639,5.56,138.35,138.34,0.05157765]
[1723825395999,9.10310329,138.35,138.34,0.05157765]
[1723825398405,5.56,138.35,138.34,0.05157765]
[1723825398805,5.56,138.35,138.34,3.66497765]
[1723825399310,5.56,138.35,138.34,0.05157765]
[1723825400104,5.56,138.35,138.34,3.66497765]
[1723825401313,9.18157327,138.35,138.34,3.66497765]
[1723825402205,5.56,138.35,138.34,3.66497765]
[1723825403700,1.0,138.39,138.34,0.05157765]
[1723825404507,1.0,138.39,138.38,3.6123]
[1723825404702,5.56,138.42,138.36,52.08]
[1723825404909,5.56,138.42,138.4,3.6117]
[1723825405101,5.56,138.42,138.37,1.41200186]
[1723825405307,5.61070612,138.42,138.38,1.2939]
[1723825405503,5.61070612,138.42,138.4,3.6116]
[1723825405709,5.61070612,138.42,138.38,1.2939]
[1723825406011,0.05070612,138.42,138.38,1.2939]
[1723825406614,0.05070612,138.42,138.41,3.6116]
[1723825412919,7.235,138.49,138.41,52.08]
[1723825413107,12.795,138.49,138.41,52.08]
[1723825413306,5.56,138.49,138.41,52.08]
[1723825414023,5.56,138.49,138.46,3.6102]
[1723825414318,5.6101119,138.49,138.46,3.6102]
[1723825415215,5.6101119,138.49,138.47,3.61]
[1723825415618,5.6101119,138.49,138.44,0.05360297]
[1723825415619,5.6101119,138.49,138.48,3.6097]
[1723825415920,5.6101119,138.49,138.47,0.05237962]
[1723825416124,5.6101119,138.49,138.47,3.66217962]
[1723825416416,7.235,138.56,138.47,52.13237962]
[1723825416620,5.56,138.56,138.48,1.3239]
[1723825416816,9.13484108,138.56,138.52,3.6087]
[1723825417213,9.13484108,138.56,138.49,52.08]
[1723825417511,5.56,138.56,138.49,52.08]
[1723825417708,0.04584962,138.54,138.53,3.6084]
[1723825417919,5.56,138.61,138.53,52.08]
[1723825418312,5.56,138.61,138.56,3.6075]
[1723825419409,5.56,138.61,138.57,0.04692276]
[1723825419410,0.05136443,138.6,138.57,0.04692276]
[1723825419620,3.67899567,138.6,138.57,0.04692276]
[1723825419821,0.05136443,138.6,138.57,0.04692276]
[1723825420020,3.64314936,138.59,138.57,0.04692276]
[1723825420217,0.05136443,138.6,138.57,0.04692276]
[1723825420818,0.05136443,138.6,138.58,3.607]
[1723825421022,0.05136443,138.6,138.59,52.08]
[1723825421326,3.66203716,138.64,138.62,3.606]
[1723825421526,5.54,138.66,138.59,52.08]
[1723825421720,5.54,138.66,138.6,1.2928]
[1723825421721,9.14359464,138.66,138.6,1.2928]
[1723825422025,9.14359464,138.66,138.63,3.6056]
[1723825422526,9.14359464,138.66,138.63,3.65238445]
[1723825422527,9.19888692,138.66,138.63,3.65238445]
[1723825422721,9.19888692,138.66,138.63,0.04678445]
[1723825423824,9.19888692,138.66,138.63,3.65258445]
[1723825424226,9.19888692,138.66,138.63,0.04678445]
[1723825424227,0.05529228,138.66,138.63,0.04678445]
[1723825424425,0.05529228,138.66,138.65,3.6053]
[1723825426131,0.05529228,138.66,138.63,0.04678445]
[1723825429728,1.0,138.65,138.63,0.04678445]
[1723825429927,5.54,138.64,138.63,0.04678445]
[1723825431236,1.0,138.65,138.63,0.04678445]
[1723825431434,6.54,138.65,138.63,0.04678445]
[1723825431731,10.06804812,138.65,138.63,0.04678445]
[1723825433538,52.08,138.64,138.57,1.4011]
[1723825434135,1.0,138.63,138.57,1.4011]
[1723825434339,1.0,138.63,138.57,5.0084]
[1723825434634,1.0,138.63,138.59,0.04584274]
[1723825434635,0.05008664,138.61,138.59,0.04584274]
[1723825435155,5.54,138.6,138.59,0.04584274]
[1723825437931,5.59008664,138.61,138.59,0.04584274]
[1723825438828,0.05008664,138.61,138.59,0.04584274]
[1723825439429,0.05008664,138.61,138.59,3.65264274]
[1723825440135,0.05008664,138.61,138.59,0.04584274]
[1723825441530,0.05008664,138.61,138.59,3.65264274]
[1723825441832,0.05008664,138.61,138.59,0.04584274]
[1723825442740,0.05008664,138.61,138.59,3.65254274]
[1723825443034,1.0,138.63,138.59,52.12584274]
[1723825443238,3.52804812,138.65,138.63,3.6058]
[1723825443442,5.54,138.66,138.63,3.6058]
[1723825443935,5.54,138.66,138.6,2.621]
[1723825444141,3.60219439,138.66,138.6,2.621]
[1723825444435,0.04984746,138.64,138.62,0.0553713]
[1723825445234,0.04984746,138.64,138.63,3.6058]
[1723825445438,0.04984746,138.64,138.63,55.6858]
[1723825445835,5.54,138.66,138.65,3.6053]
[1723825446040,5.54,138.7,138.63,52.08]
[1723825446234,9.10108415,138.7,138.63,52.08]
[1723825446442,9.10108415,138.7,138.67,3.6046]
[1723825446648,0.2022,138.78,138.6,2.621]
[1723825446835,0.2022,138.78,138.7,3.6039]
[1723825447144,0.05422151,138.7,138.69,52.08]
[1723825447331,49.0,138.6,138.26,10.8461]
[1723825447532,49.0,138.6,138.38,52.08]
[1723825447740,49.0,138.6,138.43,52.08]
[1723825447741,52.08,138.57,138.43,52.08]
[1723825448043,5.54,138.62,138.48,52.08]
[1723825448044,3.57483483,138.59,138.48,52.08]
[1723825448240,1.0,138.59,138.51,52.08]
[1723825448545,0.04803351,138.55,138.54,3.608]
[1723825448739,52.08,138.64,138.53,5.86]
[1723825449039,52.08,138.62,138.53,5.86]
[1723825449239,52.08,138.62,138.52,8.5763]
[1723825449448,52.08,138.62,138.52,2.7163]
[1723825449630,52.08,138.62,138.52,8.5763]
[1723825449859,52.08,138.62,138.52,2.7163]
[1723825450043,52.08,138.57,138.49,1.3543]
[1723825450244,0.04723997,138.58,138.49,1.3543]
[1723825450441,52.08,138.59,138.49,1.3543]
[1723825450642,5.86,138.58,138.49,1.3543]
[1723825450843,1.0,138.56,138.49,1.3543]
[1723825451440,0.04962514,138.54,138.51,0.05479168]
[1723825456141,0.04962514,138.54,138.51,3.66369168]
[1723825456546,0.04962514,138.54,138.51,0.05479168]
[1723825458842,1.0,138.56,138.51,0.05479168]
[1723825458843,3.7518,138.58,138.53,104.16]
[1723825459043,3.69347646,138.63,138.57,52.08]
[1723825459240,231.86,138.69,138.58,1.2758]
[1723825459436,0.37718769,138.68,138.59,3.6067]
[1723825459639,4.00245357,138.68,138.6,52.08]
[1723825459844,4.62526588,138.68,138.6,52.08]
[1723825460042,0.04986134,138.65,138.63,3.65746712]
[1723825461651,0.04986134,138.65,138.63,0.05166712]
[1723825462547,5.90986134,138.65,138.63,0.05166712]
[1723825465549,5.90986134,138.65,138.55,1.2716]
[1723825465748,5.86,138.65,138.55,1.2716]
[1723825466149,5.86,138.65,138.57,3.6072]
[1723825466350,5.86,138.65,138.55,1.2716]
[1723825466851,0.05025691,138.61,138.59,0.05513424]
[1723825467154,3.59277863,138.61,138.59,0.05513424]
[1723825467355,0.05025691,138.61,138.59,0.05513424]
[1723825467851,3.64256659,138.61,138.59,0.05513424]
[1723825468150,0.05025691,138.61,138.59,0.05513424]
[1723825468654,0.05025691,138.61,138.6,3.6066]
[1723825468854,3.65970517,138.68,138.59,0.05513424]
[1723825469152,5.86,138.67,138.62,3.6059]
[1723825469360,3.69260717,138.67,138.61,1.3717]
[1723825469554,5.86,138.68,138.61,1.3717]
[1723825469755,5.86,138.68,138.62,3.6059]
[1723825470055,5.86,138.68,138.61,1.3717]
[1723825470056,0.04922496,138.66,138.63,0.04899891]
[1723825472954,0.04922496,138.66,138.56,1.3348]
[1723825473177,62.29,138.65,138.56,1.3348]
[1723825473351,62.29,138.65,138.56,4.9424]
[1723825474160,0.05139969,138.62,138.59,0.04803651]
[1723825474361,5.86,138.61,138.59,0.04803651]
[1723825475360,3.56906894,138.6,138.59,0.04803651]
[1723825478565,0.05139969,138.62,138.59,0.04803651]
[1723825479163,0.05139969,138.62,138.6,3.6064]
[1723825480359,3.58530018,138.61,138.59,0.04803651]
[1723825482670,0.05139969,138.62,138.59,0.04803651]
[1723825485873,0.05139969,138.62,138.52,1.2774]
[1723825485874,52.01139969,138.62,138.52,1.2774]
[1723825486178,51.96,138.62,138.52,1.2774]
[1723825486472,51.96,138.62,138.54,3.6082]
[1723825486772,51.96,138.62,138.52,1.2774]
[1723825486970,0.05251949,138.59,138.57,0.0551274]
[1723825487274,3.62534692,138.59,138.57,0.0551274]
[1723825487473,0.05251949,138.59,138.57,0.0551274]
[1723825487978,3.72528363,138.59,138.57,0.0551274]
[1723825488176,5.8,138.58,138.57,0.0551274]
[1723825488379,9.4511172,138.58,138.57,0.0551274]
[1723825488674,0.05251949,138.59,138.57,0.0551274]
[1723825488983,5.8,138.58,138.57,0.0551274]
[1723825489474,9.45685814,138.58,138.57,0.0551274]
[1723825489864,9.45685814,138.58,138.51,4.9886]
[1723825490971,0.05279495,138.56,138.53,0.05436795]
[1723825493180,0.05279495,138.56,138.53,3.66276795]
[1723825493677,0.05279495,138.56,138.53,0.05436795]
[1723825496180,0.05279495,138.56,138.53,3.66276795]
[1723825497374,0.05279495,138.56,138.53,0.05436795]
[1723825499577,0.05279495,138.56,138.53,3.66276795]
[1723825500370,0.05279495,138.56,138.53,0.05436795]
[1723825502774,5.8,138.55,138.53,0.05436795]
[1723825504183,0.05279495,138.56,138.53,0.05436795]
[1723825504387,5.85279495,138.56,138.53,0.05436795]
[1723825509388,57.81279495,138.56,138.53,0.05436795]
[1723825510480,5.62,138.55,138.53,0.05436795]
[1723825510678,52.01279495,138.56,138.53,0.05436795]
[1723825510883,5.62,138.55,138.53,0.05436795]
[1723825513487,5.62,138.54,138.53,0.05436795]
[1723825515096,0.05279495,138.56,138.53,0.05436795]
[1723825519002,0.05279495,138.56,138.53,3.66276795]
[1723825519297,0.05279495,138.56,138.53,0.05436795]
[1723825520304,0.05279495,138.56,138.54,3.608]
[1723825522894,0.05279495,138.56,138.53,3.66266795]
[1723825524501,0.05279495,138.56,138.53,0.05436795]
[1723825525005,3.65685814,138.58,138.56,3.6075]
[1723825525195,5.62,138.6,138.54,41.61]
[1723825525394,9.16664753,138.6,138.57,3.6074]
[1723825526096,3.54664753,138.6,138.57,3.6074]
[1723825526305,5.62,138.61,138.57,3.6074]
[1723825526494,0.05252935,138.6,138.58,3.6071]
[1723825526693,0.05252935,138.6,138.57,0.05500366]
[1723825527096,0.05252935,138.6,138.57,3.66220366]
[1723825527817,0.05252935,138.6,138.57,0.05500366]
[1723825527998,41.61,138.59,138.57,0.05500366]
[1723825528600,41.61,138.58,138.57,0.05500366]
[1723825529098,0.05252935,138.6,138.57,0.05500366]
[1723825529099,41.66252935,138.6,138.57,0.05500366]
[1723825529301,5.62,138.58,138.57,0.05500366]
[1723825529997,5.62,138.59,138.57,0.05500366]
[1723825530801,47.23,138.59,138.57,0.05500366]
[1723825531004,41.61,138.58,138.52,1.3583]
[1723825531307,5.62,138.59,138.52,1.3583]
[1723825531308,41.61,138.56,138.52,1.3583]
[1723825531802,45.22385597,138.56,138.52,1.3583]
[1723825532003,45.22385597,138.56,138.5,3.6091]
[1723825532199,0.05370306,138.55,138.53,0.04684344]
[1723825532406,5.62,138.54,138.53,0.04684344]
[1723825534309,0.05370306,138.55,138.53,0.04684344]
[1723825534802,5.62,138.54,138.53,0.04684344]
[1723825535510,9.3035422,138.54,138.53,0.04684344]
[1723825535800,3.6835422,138.54,138.53,0.04684344]
[1723825536505,0.05370306,138.55,138.53,0.04684344]
[1723825536806,3.69248689,138.55,138.54,3.6082]
[1723825537009,0.05370306,138.55,138.53,0.04684344]
[1723825537401,0.05370306,138.55,138.53,3.65514344]
[1723825537601,3.63401223,138.55,138.53,3.65514344]
[1723825537802,0.05370306,138.55,138.53,3.65514344]
[1723825538396,3.58533849,138.55,138.53,3.65514344]
[1723825539210,3.58533849,138.55,138.53,0.04684344]
[1723825540910,0.05370306,138.55,138.54,3.6082]
[1723825542607,3.54525045,138.56,138.55,3.6079]
[1723825542807,5.56,138.59,138.54,2.6045]
[1723825543312,9.09261977,138.59,138.54,6.2125]
[1723825543513,9.09261977,138.59,138.54,4.8906]
[1723825543706,0.04763311,138.58,138.54,3.608]
[1723825544109,4.5414775,138.57,138.53,0.04684344]
[1723825544429,0.04763311,138.58,138.53,0.04684344]
[1723825544608,4.54132666,138.57,138.53,3.65514344]
[1723825544815,4.54132666,138.56,138.53,3.65514344]
[1723825545004,4.54132666,138.55,138.53,3.65514344]
[1723825545209,4.54132666,138.54,138.53,3.65514344]
[1723825546317,0.04680099,138.55,138.54,3.6082]
[1723825546514,9.09261977,138.59,138.53,41.65684344]
[1723825547015,9.09261977,138.59,138.56,3.6076]
[1723825547613,9.14323061,138.59,138.56,3.65490975]
[1723825552819,9.14323061,138.59,138.56,0.04730975]
[1723825553120,41.61,138.58,138.49,2.6262]
[1723825553420,9.14323061,138.59,138.49,1.3358]
[1723825553421,41.61,138.54,138.49,1.3358]
[1723825553624,5.56,138.53,138.49,1.3358]
[1723825553812,5.56,138.53,138.5,3.6091]
[1723825554414,5.60835992,138.53,138.5,3.65598539]
[1723825555223,5.60835992,138.53,138.5,0.04688539]
[1723825557028,41.61,138.52,138.5,0.04688539]
[1723825557327,45.13208016,138.52,138.5,0.04688539]
[1723825558528,4.52976762,138.51,138.5,0.04688539]
[1723825559123,10.08976762,138.51,138.5,0.04688539]
[1723825559732,4.52976762,138.51,138.5,0.04688539]
[1723825560727,4.52976762,138.51,138.5,3.65608539]
[1723825561934,4.52976762,138.51,138.5,0.04688539]
[1723825562826,4.52951514,138.51,138.5,0.04688539]
[1723825563026,8.1414882,138.51,138.5,0.04688539]
[1723825563325,8.1414882,138.51,138.35,7.2258]
[1723825563532,41.61,138.49,138.41,1.3626]
[1723825563833,10.08951514,138.48,138.41,1.3626]
[1723825564028,4.52951514,138.47,138.43,3.611]
[1723825564332,5.56,138.48,138.43,3.611]
[1723825564333,4.52951514,138.46,138.44,0.0546659]
[1723825564527,4.52951514,138.45,138.44,3.6654659]
[1723825565023,0.04852811,138.46,138.45,3.6105]
[1723825565337,4.57833816,138.46,138.45,3.6105]
[1723825566027,4.57833816,138.46,138.44,3.6653659]
[1723825566234,4.52981005,138.45,138.44,3.6653659]
[1723825566628,4.53011707,138.45,138.44,3.6653659]
[1723825567444,0.04852811,138.46,138.45,3.6105]
[1723825567644,4.57828049,138.46,138.45,3.6105]
[1723825567838,0.04852811,138.46,138.45,3.6105]
[1723825568149,0.04852811,138.46,138.45,45.2205]
[1723825568442,1.3585,138.53,138.45,41.61]
[1723825568648,10.08932547,138.52,138.45,41.61]
[1723825568945,10.08932547,138.52,138.44,0.0546659]
[1723825568946,4.52932547,138.51,138.47,3.6099]
[1723825569246,4.52932547,138.5,138.47,3.6099]
[1723825569444,4.52932547,138.49,138.47,3.66309648]
[1723825569645,4.52932547,138.48,138.47,3.66309648]
[1723825570353,4.52932547,138.48,138.47,0.05319648]
[1723825570744,4.52984144,138.48,138.47,0.05319648]
[1723825573252,0.05320561,138.5,138.47,0.05319648]
[1723825573454,4.52935982,138.49,138.47,3.66299648]
[1723825573750,4.52942511,138.48,138.47,3.66299648]
[1723825573953,0.05320561,138.5,138.47,0.05319648]
[1723825574152,4.5293273,138.49,138.48,3.6096]
[1723825574648,4.52932864,138.49,138.48,3.6096]
[1723825575251,4.52932864,138.49,138.47,3.66309648]
[1723825575456,4.52932864,138.48,138.47,3.66309648]
[1723825578475,0.05320561,138.5,138.47,3.66309648]
[1723825578659,4.52976047,138.49,138.47,3.66309648]
[1723825578980,0.05320561,138.5,138.47,3.66309648]
[1723825579155,4.52975812,138.49,138.47,3.66309648]
[1723825579363,4.52975812,138.48,138.47,3.66309648]
[1723825581966,4.52975812,138.48,138.47,0.05319648]
[1723825582960,0.05320561,138.5,138.47,0.05319648]
[1723825583266,4.52938611,138.49,138.48,3.6096]
[1723825583559,4.52938611,138.49,138.47,0.05319648]
[1723825583754,4.52943641,138.48,138.47,0.05319648]
[1723825584560,4.52943641,138.48,138.47,3.66319648]
[1723825585361,0.05320561,138.5,138.48,3.6097]
[1723825585660,4.52938793,138.49,138.48,3.6097]
[1723825588262,0.05320561,138.5,138.48,3.6097]
[1723825588464,4.52922148,138.49,138.48,3.6097]
[1723825588665,21.51408896,138.6,138.48,41.61]
[1723825588867,96.48797968,138.64,138.53,41.61]
[1723825588868,1.3309,138.62,138.53,41.61]
[1723825589164,42.9409,138.62,138.53,41.61]
[1723825589461,42.9409,138.62,138.57,3.6073]
[1723825590160,0.04737987,138.61,138.58,0.05038236]
[1723825590461,3.62000142,138.61,138.58,0.05038236]
[1723825590664,41.61,138.6,138.58,0.05038236]
[1723825593756,3.68278661,138.61,138.58,0.05038236]
[1723825593957,0.04737987,138.61,138.58,0.05038236]
[1723825594252,3.57283847,138.61,138.58,0.05038236]
[1723825594453,0.04737987,138.61,138.58,0.05038236]
[1723825595263,0.04737987,138.61,138.58,3.65728236]
[1723825595565,0.04737987,138.61,138.58,0.05038236]
[1723825595962,0.04737987,138.61,138.59,3.6067]
[1723825596165,0.04737987,138.61,138.58,0.05038236]
[1723825596364,0.04737987,138.61,138.6,3.6066]
[1723825598867,45.24842287,138.68,138.58,45.6116]
[1723825599170,45.24842287,138.68,138.59,5.54]
[1723825599360,45.24842287,138.68,138.63,3.6057]
[1723825599568,41.61,138.68,138.63,3.6057]
[1723825599959,0.04753192,138.67,138.64,0.05205463]
[1723825600363,0.04753192,138.67,138.64,3.65755463]
[1723825601171,0.04753192,138.67,138.65,3.6052]
[1723825602177,0.04753192,138.67,138.64,5.59205463]
[1723825602370,0.04753192,138.67,138.65,1.3007]
[1723825602566,247.49367677,138.76,138.69,3.6042]
[1723825602770,41.61,138.74,138.69,3.6042]
[1723825603071,41.61,138.74,138.68,3.6043]
[1723825603272,41.61,138.74,138.67,5.54]
[1723825603662,41.61,138.74,138.67,47.15]
[1723825604176,0.04568206,138.72,138.69,0.04714235]
[1723825604871,0.04568206,138.72,138.71,3.6037]
[1723825605073,0.04568206,138.72,138.69,0.04714235]
[1723825605371,0.04568206,138.72,138.7,3.6038]
[1723825605576,0.04568206,138.72,138.69,0.04714235]
[1723825605970,3.59987138,138.76,138.69,0.04714235]
[1723825606270,42.9576,138.79,138.69,0.04714235]
[1723825606473,41.61,138.79,138.69,0.04714235]
[1723825606862,41.61,138.79,138.68,41.61]
[1723825607071,41.61,138.79,138.73,3.6031]
[1723825607273,6.9021,138.81,138.73,3.6031]
[1723825607466,41.61,138.78,138.73,3.6031]
[1723825607667,45.1273209,138.78,138.76,0.05304531]
[1723825610473,45.1273209,138.78,138.69,5.54]
[1723825610474,41.61,138.76,138.68,5.54]
[1723825610668,41.61,138.76,138.71,3.6036]
[1723825610870,3.63789331,138.75,138.71,3.6036]
[1723825611069,3.63789331,138.75,138.68,47.15]
[1723825611371,0.05141104,138.73,138.7,0.05536546]
[1723825612076,0.05141104,138.73,138.71,3.6035]
[1723825612367,0.05141104,138.73,138.7,0.05536546]
[1723825612568,0.05141104,138.73,138.71,3.6036]
[1723825614469,0.05141104,138.73,138.7,3.65926546]
[1723825616273,0.05141104,138.73,138.71,3.6037]
[1723825616880,0.05141104,138.73,138.7,3.65916546]
[1723825617072,0.05141104,138.73,138.7,0.05536546]
[1723825617378,0.05141104,138.73,138.71,3.6037]
[1723825619182,0.05141104,138.73,138.7,0.05536546]
[1723825620577,0.05141104,138.73,138.7,3.65926546]
[1723825620779,0.05141104,138.73,138.7,0.05536546]
[1723825621193,0.05141104,138.73,138.71,3.6036]
[1723825622476,0.05141104,138.73,138.72,3.6035]
[1723825622672,0.05141104,138.73,138.7,0.05536546]
[1723825622983,0.05141104,138.73,138.71,3.6036]
[1723825623571,0.05141104,138.73,138.72,3.6035]
[1723825623984,3.62138243,138.78,138.76,3.6024]
[1723825624182,5.54,138.8,138.76,3.6024]
[1723825624481,1.372,138.82,138.77,41.61]
[1723825624683,3.53965115,138.85,138.78,3.6017]
[1723825624976,5.54,138.85,138.77,41.61]
[1723825625181,5.54,138.85,138.72,1.3069]
[1723825625182,41.61,138.84,138.75,41.61]
[1723825625585,41.61,138.84,138.8,0.05500144]
[1723825626380,9.07019006,138.85,138.8,0.05500144]
[1723825628981,50.68019006,138.85,138.8,0.05500144]
[1723825631789,9.07019006,138.85,138.8,0.05500144]
[1723825635888,41.61,138.84,138.8,0.05500144]
[1723825637593,41.61,138.82,138.74,3.6028]
[1723825638190,41.61,138.82,138.73,41.61]
[1723825638391,41.61,138.82,138.75,3.6026]
[1723825638598,41.61,138.82,138.71,8.2545]
[1723825638599,0.05199308,138.8,138.77,0.04971391]
[1723825638790,5.52,138.79,138.77,0.04971391]
[1723825639693,41.61,138.78,138.77,0.04971391]
[1723825639893,45.24232802,138.78,138.72,3.6034]
[1723825640489,3.63232802,138.78,138.71,1.374]
[1723825640694,6.863,138.79,138.71,1.374]
[1723825640894,0.05121062,138.76,138.74,0.05430886]
[1723825641391,0.05121062,138.76,138.74,41.66430886]
[1723825641598,0.05121062,138.76,138.75,41.61]
[1723825642290,5.52,138.82,138.77,3.6022]
[1723825642487,5.52,138.82,138.77,41.61]
[1723825642694,43.0012,138.89,138.79,41.61]
[1723825642887,1.2846,138.88,138.79,41.61]
[1723825643291,1.2846,138.88,138.8,3.6012]
[1723825643497,0.04575536,138.85,138.82,0.04546038]
[1723825644294,0.04575536,138.85,138.82,3.64616038]
[1723825644803,3.64346106,138.84,138.82,0.04546038]
[1723825645190,3.55812817,138.85,138.82,0.04546038]
[1723825645596,3.55812817,138.85,138.83,5.52]
[1723825645993,3.55812817,138.85,138.82,0.04546038]
[1723825646299,0.04575536,138.85,138.82,0.04546038]
[1723825646603,0.04575536,138.85,138.83,47.13]
[1723825646901,0.04575536,138.85,138.83,50.7304]
[1723825647290,45.1952851,138.92,138.84,5.52]
[1723825647291,3.5852851,138.92,138.84,5.52]
[1723825647492,44.3262,138.95,138.86,3.5998]
[1723825647697,0.37502492,138.94,138.86,3.5998]
[1723825647890,0.37502492,138.94,138.87,5.52]
[1723825648393,41.61,138.93,138.89,0.04769856]
[1723825648589,0.37502492,138.92,138.85,5.52]
[1723825648787,41.61,138.93,138.83,5.52]
[1723825648999,0.37498645,138.92,138.84,41.61]
[1723825649595,0.04638691,138.89,138.87,0.05092625]
[1723825650202,0.04638691,138.89,138.87,3.65052625]
[1723825650499,0.37493085,138.94,138.88,41.61]
[1723825650802,2.6645,139.01,138.93,41.61]
[1723825651098,5.89453791,139.0,138.93,41.61]
[1723825651293,5.89453791,138.99,138.93,41.61]
[1723825651600,6.26710714,139.01,138.95,0.0534253]
[1723825651801,5.52,138.98,138.95,45.2608253]
[1723825652294,3.53745536,138.99,138.95,41.6634253]
[1723825652501,5.52,138.99,138.95,41.6634253]
[1723825652697,3.53385673,138.98,138.95,41.6634253]
[1723825653005,5.52,139.0,138.95,41.6634253]
[1723825653299,3.64793336,139.0,138.95,41.6634253]
[1723825653503,5.52,139.0,138.95,0.0534253]
[1723825653705,9.14130349,139.0,138.95,0.0534253]
[1723825654697,3.62130349,139.0,138.95,0.0534253]
[1723825654898,5.52,139.0,138.95,0.0534253]
[1723825655100,9.09400665,139.0,138.95,3.6507253]
[1723825655498,9.09400665,139.0,138.95,0.0534253]
[1723825655701,5.52,139.0,138.95,0.0534253]
[1723825656298,9.02960041,139.0,138.95,0.0534253]
[1723825656704,5.52,139.0,138.95,0.0534253]
[1723825656906,9.13466534,139.0,138.95,0.0534253]
[1723825657704,5.52,138.99,138.95,0.0534253]
[1723825658096,54.4845,139.01,138.95,0.0534253]
[1723825658300,5.52,139.0,138.95,0.0534253]
[1723825660006,58.07027874,139.01,138.95,0.0534253]
[1723825660200,5.52,139.0,138.95,0.0534253]
[1723825660812,5.52,139.03,138.95,51.8734253]
[1723825661113,5.52,139.03,138.96,1.2622]
[1723825661412,3.68385244,139.03,138.97,51.82]
[1723825661706,5.52,139.04,138.99,3.65120133]
[1723825662105,3.55107831,139.03,138.99,3.65120133]
[1723825662301,5.52,139.04,138.99,0.05470133]
[1723825662502,9.0743167,139.04,138.99,0.05470133]
[1723825662810,9.0743167,139.04,138.99,3.65100133]
[1723825663005,9.0743167,139.04,138.99,0.05470133]
[1723825667309,3.5543167,139.04,138.99,0.05470133]
[1723825667509,5.52,139.04,138.99,0.05470133]
[1723825667809,3.59851734,139.03,138.99,3.65110133]
[1723825668018,5.52,139.04,138.99,0.05470133]
[1723825668212,2.6435,139.05,138.99,0.05470133]
[1723825668404,8.1635,139.05,138.99,0.05470133]
[1723825669111,11.72568321,139.05,138.99,0.05470133]
[1723825669317,63.54568321,139.05,138.99,0.05470133]
[1723825669812,1.2951,139.04,138.99,0.05470133]
[1723825671115,104.32884421,139.07,138.99,0.05470133]
[1723825671319,5.52,139.06,138.99,0.05470133]
[1723825672110,5.52,139.06,139.0,3.5961]
[1723825672512,0.02,139.07,138.99,51.87470133]
[1723825672815,5.54,139.07,138.99,51.87470133]
[1723825673214,9.14381309,139.07,139.01,3.5958]
[1723825673411,9.14381309,139.07,138.99,51.87470133]
[1723825673608,3.62381309,139.07,138.99,51.87470133]
[1723825673824,3.62381309,139.07,139.01,3.5958]
[1723825674012,3.62381309,139.07,138.99,51.82]
[1723825674211,3.62381309,139.07,139.02,0.04826249]
[1723825676412,0.02,139.07,139.02,41.45826249]
[1723825676819,3.6127053,139.07,139.02,41.45826249]
[1723825677008,0.02,139.07,139.02,0.04826249]
[1723825677214,3.60956971,139.07,139.02,0.04826249]
[1723825677447,41.41,139.06,139.02,0.04826249]
[1723825677723,47.60066122,139.06,139.02,0.04826249]
[1723825678113,6.19066122,139.06,139.02,0.04826249]
[1723825682422,3.57806122,139.06,139.02,0.04826249]
[1723825682629,0.02,139.07,139.02,0.04826249]
[1723825682928,3.56009465,139.07,139.02,0.04826249]
[1723825683235,51.81,139.07,139.02,0.04826249]
[1723825683427,1.3586,139.06,139.02,0.04826249]
[1723825683838,51.79,139.05,139.02,0.04826249]
[1723825684039,51.79,139.03,138.93,1.3387]
[1723825684652,51.79,139.01,138.8,7.2025]
[1723825684937,51.79,138.98,138.88,53.1366]
[1723825685142,51.79,138.96,138.88,1.3466]